[Event "DVM U12W 2021"]
[Site "Willingen"]
[Date "2022.08.15"]
[Round "5"]
[White "Daaboul, Dima"]
[Black "Mauhs, Helena"]
[Result "1/2-1/2"]
[ECO "C57"]
[WhiteElo "882"]
[BlackElo "857"]
[Annotator "NA RC"]
[PlyCount "144"]
[EventDate "2022.08.12"]
[EventType "team-tourn"]
[EventRounds "7"]
[EventCountry "GER"]
[SourceTitle "playchess.com"]
[Source "ChessBase"]
[SourceQuality "1"]
[TimeControl "40/5400+30:1800+30"]

1. e4 {[%emt 0:00:02]} e5 {[%emt 0:00:07]} 2. Nf3 {[%emt 0:00:08]} Nc6 {[%emt 0:00:08]} 3. d4 {[%emt 0:00:11]} exd4 {[%emt 0:00:08]} 4. Bc4 {[%emt 0:00:10]} Nf6 {[%emt 0:00:17]} 5. Ng5 {[%emt 0:00:18]} d5 {[%emt 0:00:22]} 6. exd5 {[%emt 0:01:23]} Nxd5 {[%emt 0:01:10]} 7. Qf3 {[%emt 0:01:30]} Be6 {[%emt 0:03:52]} 8. O-O {[%emt 0:01:34]} Ne5 {[%emt 0:01:30]} 9. Bxd5 {[%emt 0:03:47]} Nxf3+ {[%emt 0:01:28]} 10. Nxf3 {[%emt 0:01:22]} Qxd5 {[%emt 0:01:13]} 11. Rd1 {[%emt 0:00:28]} Qf5 {[%emt 0:02:19]} 12. Rxd4 {[%emt 0:01:41]} Bc5 {[%emt 0:01:15]} 13. Rf4 {[%emt 0:01:09]} Qxc2 {[%emt 0:00:32]} 14. Nbd2 {[%emt 0:02:32]} Qd1+ {[%emt 0:01:15]} 15. Nf1 {[%emt 0:00:34]} Qe2 {[%emt 0:01:44]} 16. Ng5 {[%emt 0:01:14]} O-O-O {[%emt 0:01:26]} 17. Ne4 {[%emt 0:06:24]} Bc4 {[%emt 0:01:30]} 18. Neg3 {[%emt 0:01:12]} Rd1 {[%emt 0:01:59]} 19. Nxe2 {[%emt 0:00:41]} Bxe2 {[%emt 0:01:43]} 20. g3 {[%emt 0:01:34]} Rxf1+ {[%emt 0:01:38]} 21. Kg2 {[%emt 0:00:14]} Rd8 {[%emt 0:04:54]} 22. Rxf7 {[%emt 0:02:21]} Rd3 {[%emt 0:01:48]} 23. Rf5 {[%emt 0:01:40]} Bd4 {[%emt 0:01:49]} 24. Rf8+ {[%emt 0:00:47]} Kd7 {[%emt 0:00:28]} 25. Rf7+ {[%emt 0:00:28]} Ke6 {[%emt 0:00:57]} 26. Rf4 {[%emt 0:00:43]} Be5 {[%emt 0:01:58]} 27. Re4 {[%emt 0:00:44]} Re1 {[%emt 0:02:30]} 28. Rxe5+ {[%emt 0:04:21]} Kxe5 {[%emt 0:01:24]} 29. Bf4+ {[%emt 0:00:13]} Kf5 {[%emt 0:01:30]} 30. Rxe1 {[%emt 0:00:20]} Bf3+ {[%emt 0:00:40]} 31. Kf1 {[%emt 0:00:39]} Kg4 {[%emt 0:03:20]} 32. Bxc7 {[%emt 0:06:10]} Kh3 {[%emt 0:03:25]} 33. Re3 {[%emt 0:03:53]} Rd1+ {[%emt 0:08:04]} 34. Re1 {[%emt 0:00:58]} Rxe1+ {[%emt 0:01:41]} 35. Kxe1 {[%emt 0:00:13]} Kxh2 {[%emt 0:00:30]} 36. Kd2 {[%emt 0:03:04]} Kg2 {[%emt 0:02:40]} 37. Ke3 {[%emt 0:00:58]} g5 {[%emt 0:01:38]} 38. Bd8 {[%emt 0:03:15]} h6 {[%emt 0:03:37]} 39. Be7 {[%emt 0:02:34]} Bd5 {[%emt 0:02:09]} 40. a3 {[%emt 0:01:14]} a6 {[%emt 0:04:15]} 41. b4 {[%emt 0:31:28]} b5 {[%emt 0:31:14]} 42. f4 {[%emt 0:01:37]} gxf4+ {[%emt 0:02:23]} 43. gxf4 {[%emt 0:00:48]} Be6 {[%emt 0:00:56]} 44. Ke4 {[%emt 0:00:30]} h5 {[%emt 0:00:59]} 45. f5 {[%emt 0:00:26]} Bf7 {[%emt 0:00:54]} 46. Ke5 {[%emt 0:02:22]} Kg3 {[%emt 0:02:14]} 47. Kd6 {[%emt 0:05:13]} h4 {[%emt 0:02:47]} 48. Bxh4+ {[%emt 0:01:54]} Kxh4 {[%emt 0:00:12]} 49. f6 {[%emt 0:00:20]} Kg5 {[%emt 0:00:36]} 50. Ke7 {[%emt 0:00:17]} Bg8 {[%emt 0:03:33]} 51. f7 {[%emt 0:00:38]} Bxf7 {[%emt 0:00:43]} 52. Kxf7 {[%emt 0:00:11]} Kf5 {[%emt 0:00:26]} 53. Ke7 {[%emt 0:00:13]} Ke5 {[%emt 0:00:11]} 54. Kd7 {[%emt 0:00:10]} Kd5 {[%emt 0:00:14]} 55. Kc7 {[%emt 0:00:22]} Kd4 {[%emt 0:00:31]} 56. Kb6 {[%emt 0:00:09]} Kc4 {[%emt 0:00:13]} 57. Kxa6 {[%emt 0:00:14]} Kd5 {[%emt 0:01:09]} 58. Kxb5 {[%emt 0:00:13]} Kd6 {[%emt 0:00:07]} 59. a4 {[%emt 0:00:07]} Kc7 {[%emt 0:00:07]} 60. a5 {[%emt 0:00:24]} Kb7 {[%emt 0:00:50]} 61. Kc5 {[%emt 0:01:55]} Ka6 {[%emt 0:00:41]} 62. b5+ {[%emt 0:00:32]} Kb7 {[%emt 0:01:11]} 63. a6+ {[%emt 0:00:20]} Ka7 {[%emt 0:00:34]} 64. b6+ {[%emt 0:00:15]} Kb8 {[%emt 0:00:25]} 65. b7 {[%emt 0:02:04]} Kc7 {[%emt 0:01:36]} 66. Kb5 {[%emt 0:00:41]} Kb8 {[%emt 0:00:18]} 67. Kc6 {[%emt 0:01:18]} Ka7 {[%emt 0:00:13]} 68. b8=Q+ {[%emt 0:01:10]} Kxb8 {[%emt 0:00:14]} 69. Kb5 {[%emt 0:04:06]} Ka8 {[%emt 0:01:18]} 70. Kb6 {[%emt 0:00:38]} Kb8 {[%emt 0:00:31]} 71. a7+ {[%emt 0:00:09]} Ka8 {[%emt 0:00:14]} 72. Ka5 {[%emt 0:00:10]} Kxa7 {[%emt 0:00:15]} 1/2-1/2

[Event "DVM U12W 2021"]
[Site "Willingen"]
[Date "2022.08.15"]
[Round "5"]
[White "Reetz, Shaila"]
[Black "Marrufo, Adriana"]
[Result "0-1"]
[ECO "C47"]
[WhiteElo "837"]
[BlackElo "942"]
[Annotator "NA RC"]
[PlyCount "60"]
[EventDate "2022.08.12"]
[EventType "team-tourn"]
[EventRounds "7"]
[EventCountry "GER"]
[SourceTitle "playchess.com"]
[Source "ChessBase"]
[SourceQuality "1"]
[TimeControl "40/5400+30:1800+30"]

1. e4 {[%emt 0:00:03]} e5 {[%emt 0:00:09]} 2. Nf3 {[%emt 0:00:20]} Nc6 {[%emt 0:00:13]} 3. Nc3 {[%emt 0:00:08]} Nf6 {[%emt 0:01:30]} 4. a3 {[%emt 0:00:10]} Bc5 {[%emt 0:02:36]} 5. Nxe5 {[%emt 0:00:57]} Bxf2+ {[%emt 0:08:10]} 6. Kxf2 {[%emt 0:01:25]} Nxe5 {[%emt 0:00:36]} 7. Kg1 {[%emt 0:01:03]} d6 {[%emt 0:00:54]} 8. Nd5 {[%emt 0:01:30]} Nxd5 {[%emt 0:01:14]} 9. exd5 {[%emt 0:00:34]} O-O {[%emt 0:00:56]} 10. Qe1 {[%emt 0:00:24]} Re8 {[%emt 0:00:19]} 11. Qg3 {[%emt 0:01:40]} c6 {[%emt 0:02:16]} 12. Bc4 {[%emt 0:01:23]} cxd5 {[%emt 0:01:52]} 13. b3 {[%emt 0:01:06]} dxc4 {[%emt 0:00:22]} 14. bxc4 {[%emt 0:00:21]} Re6 {[%emt 0:00:18]} 15. Bb2 {[%emt 0:00:18]} Qb6+ {[%emt 0:00:57]} 16. d4 {[%emt 0:01:18]} Qxb2 {[%emt 0:00:16]} 17. Rd1 {[%emt 0:00:26]} Nxc4 {[%emt 0:03:10]} 18. Qh4 {[%emt 0:01:49]} Bd7 {[%emt 0:00:58]} 19. h3 {[%emt 0:00:50]} Rg6 {[%emt 0:00:52]} 20. Qf2 {[%emt 0:00:53]} Rc8 {[%emt 0:01:27]} 21. Rf1 {[%emt 0:01:22]} Be6 {[%emt 0:02:32]} 22. Qe2 {[%emt 0:00:52]} Nxa3 {[%emt 0:00:26]} 23. Qe4 {[%emt 0:01:30]} Rxc2 {[%emt 0:00:22]} 24. Rh2 {[%emt 0:02:55]} h6 {[%emt 0:00:49]} 25. Kh1 {[%emt 0:04:40]} Rc1 {[%emt 0:00:37]} 26. Kg1 {[%emt 0:00:58]} Rf6 {[%emt 0:00:26]} 27. Rh1 {[%emt 0:00:24]} Rfxf1+ {[%emt 0:00:47]} 28. Kh2 {[%emt 0:00:18]} Rxh1+ {[%emt 0:00:22]} 29. Kg3 {[%emt 0:00:26]} Rcf1 {[%emt 0:00:42]} 30. d5 {[%emt 0:00:50]} Qf2# {[%emt 0:00:36]} 0-1

[Event "DVM U12W 2021"]
[Site "Willingen"]
[Date "2022.08.15"]
[Round "5"]
[White "Marrufo, Leandra"]
[Black "Bykov, Sophia"]
[Result "0-1"]
[ECO "C41"]
[WhiteElo "701"]
[BlackElo "896"]
[Annotator "NA RC"]
[PlyCount "50"]
[EventDate "2022.08.12"]
[EventType "team-tourn"]
[EventRounds "7"]
[EventCountry "GER"]
[SourceTitle "playchess.com"]
[Source "ChessBase"]
[SourceQuality "1"]
[TimeControl "40/5400+30:1800+30"]

1. e4 {[%emt 0:00:05]} e5 {[%emt 0:00:00]} 2. Nf3 {[%emt 0:00:05]} Nc6 {[%emt 0:00:00]} 3. d4 {[%emt 0:00:12]} d6 {[%emt 0:00:13]} 4. d5 {[%emt 0:00:43]} Nb4 {[%emt 0:06:16]} 5. Nc3 {[%emt 0:00:18]} Nf6 {[%emt 0:00:30]} 6. Bg5 {[%emt 0:00:06]} h6 {[%emt 0:00:09]} 7. Bh4 {[%emt 0:00:05]} g5 {[%emt 0:01:53]} 8. Bg3 {[%emt 0:00:26]} h5 {[%emt 0:00:15]} 9. h3 {[%emt 0:00:27]} g4 {[%emt 0:17:25]} 10. Nd2 {[%emt 0:00:36]} Bh6 {[%emt 0:10:29]} 11. Be2 {[%emt 0:00:49]} Bd7 {[%emt 0:03:00]} 12. f3 {[%emt 0:01:09]} Ng8 {[%emt 0:02:32]} 13. hxg4 {[%emt 0:00:48]} hxg4 {[%emt 0:08:22]} 14. Bc4 {[%emt 0:01:03]} f5 {[%emt 0:06:40]} 15. a3 {[%emt 0:00:14]} f4 {[%emt 0:01:21]} 16. Bf2 {[%emt 0:00:25]} g3 {[%emt 0:02:25]} 17. Bg1 {[%emt 0:00:37]} Na6 {[%emt 0:01:51]} 18. Qe2 {[%emt 0:01:17]} c6 {[%emt 0:01:55]} 19. O-O-O {[%emt 0:00:26]} b5 {[%emt 0:00:33]} 20. Ba2 {[%emt 0:01:04]} b4 {[%emt 0:00:48]} 21. axb4 {[%emt 0:00:24]} Bc8 {[%emt 0:04:00]} 22. Bc4 {[%emt 0:00:19]} Nxb4 {[%emt 0:20:10]} 23. Nb3 {[%emt 0:00:32]} a5 {[%emt 0:00:00]} 24. Kb1 {[%emt 0:00:00]} a4 {[%emt 0:00:00]} 25. Na1 Bf8 {[%emt 0:43:36]} 0-1

[Event "DVM U12W 2021"]
[Site "Willingen"]
[Date "2022.08.15"]
[Round "6"]
[White "Müller, Cosima"]
[Black "Ramakrishnan, Veda"]
[Result "1-0"]
[ECO "B13"]
[WhiteElo "1355"]
[BlackElo "1333"]
[Annotator "NA RC"]
[PlyCount "135"]
[EventDate "2022.08.12"]
[EventType "team-tourn"]
[EventRounds "7"]
[EventCountry "GER"]
[SourceTitle "playchess.com"]
[Source "ChessBase"]
[SourceQuality "1"]
[TimeControl "40/5400+30:1800+30"]

1. e4 {[%emt 0:00:05]} c6 {[%emt 0:00:07]} 2. d4 {[%emt 0:00:41]} d5 {[%emt 0:00:08]} 3. exd5 {[%emt 0:00:12]} cxd5 {[%emt 0:00:08]} 4. Bd3 {[%emt 0:00:07]} Nf6 {[%emt 0:00:09]} 5. c3 {[%emt 0:00:40]} Nc6 {[%emt 0:00:37]} 6. Bf4 {[%emt 0:00:10]} Bg4 {[%emt 0:01:31]} 7. Qb3 {[%emt 0:00:07]} Qb6 {[%emt 0:01:21]} 8. Qxb6 {[%emt 0:05:01]} axb6 {[%emt 0:00:38]} 9. Nd2 {[%emt 0:00:17]} e6 {[%emt 0:00:49]} 10. Ngf3 {[%emt 0:00:24]} Be7 {[%emt 0:01:31]} 11. O-O {[%emt 0:00:39]} O-O {[%emt 0:00:46]} 12. a3 {[%emt 0:10:34]} Nh5 {[%emt 0:02:46]} 13. Bc7 {[%emt 0:02:26]} Bd8 {[%emt 0:02:29]} 14. Bxd8 {[%emt 0:00:13]} Rfxd8 {[%emt 0:00:24]} 15. Bb5 {[%emt 0:01:09]} Ra5 {[%emt 0:02:48]} 16. a4 {[%emt 0:03:34]} Rda8 {[%emt 0:01:31]} 17. Bxc6 {[%emt 0:02:25]} bxc6 {[%emt 0:00:12]} 18. Ne5 {[%emt 0:00:37]} Bf5 {[%emt 0:04:19]} 19. g4 {[%emt 0:00:35]} Bxg4 {[%emt 0:00:35]} 20. Nxg4 {[%emt 0:00:07]} Rxa4 {[%emt 0:00:09]} 21. Rxa4 {[%emt 0:01:06]} Rxa4 {[%emt 0:00:16]} 22. Ne5 {[%emt 0:02:10]} c5 {[%emt 0:00:46]} 23. Ndf3 {[%emt 0:02:34]} c4 {[%emt 0:01:18]} 24. Nc6 {[%emt 0:04:48]} Nf4 {[%emt 0:00:45]} 25. Nb4 {[%emt 0:01:27]} f6 {[%emt 0:05:10]} 26. Re1 {[%emt 0:01:53]} b5 {[%emt 0:01:19]} 27. Nd2 {[%emt 0:00:46]} Kf7 {[%emt 0:00:54]} 28. h4 {[%emt 0:04:16]} Ng6 {[%emt 0:05:06]} 29. Nf3 {[%emt 0:00:23]} Ra8 {[%emt 0:05:38]} 30. Kh2 {[%emt 0:01:35]} Re8 {[%emt 0:01:35]} 31. Na6 {[%emt 0:01:11]} Rc8 {[%emt 0:01:52]} 32. Nc5 {[%emt 0:00:50]} Rc6 {[%emt 0:02:32]} 33. Kg3 {[%emt 0:02:41]} Nf8 {[%emt 0:02:00]} 34. Ra1 {[%emt 0:00:37]} Rb6 {[%emt 0:01:02]} 35. Ra7+ {[%emt 0:00:17]} Ke8 {[%emt 0:02:12]} 36. Ra8+ {[%emt 0:00:38]} Kf7 {[%emt 0:00:28]} 37. Rxf8+ {[%emt 0:00:43]} Kxf8 {[%emt 0:00:40]} 38. Nd7+ {[%emt 0:00:00]} Ke7 {[%emt 0:00:53]} 39. Nxb6 {[%emt 0:00:00]} Kd8 {[%emt 0:00:35]} 40. Nd2 {[%emt 0:01:46]} Kc7 {[%emt 0:00:49]} 41. Nxd5+ {[%emt 0:30:35]} exd5 {[%emt 0:30:23]} 42. Kf4 {[%emt 0:00:45]} g6 {[%emt 0:01:10]} 43. Nb1 {[%emt 0:00:59]} Kb6 {[%emt 0:00:30]} 44. Na3 {[%emt 0:00:08]} Ka5 {[%emt 0:00:08]} 45. Nc2 {[%emt 0:00:21]} Ka4 {[%emt 0:00:24]} 46. Nb4 {[%emt 0:00:10]} Kb3 {[%emt 0:00:45]} 47. Nxd5 {[%emt 0:00:04]} Kxb2 {[%emt 0:00:39]} 48. Ke3 {[%emt 0:00:27]} h5 {[%emt 0:01:19]} 49. f4 {[%emt 0:00:35]} g5 {[%emt 0:01:37]} 50. fxg5 {[%emt 0:00:57]} fxg5 {[%emt 0:00:18]} 51. hxg5 {[%emt 0:00:18]} h4 {[%emt 0:00:13]} 52. g6 {[%emt 0:00:12]} h3 {[%emt 0:00:07]} 53. Kf2 {[%emt 0:00:05]} Kb3 {[%emt 0:00:30]} 54. g7 {[%emt 0:00:07]} h2 {[%emt 0:00:34]} 55. Kg2 {[%emt 0:00:04]} h1=B+ {[%emt 0:00:33]} 56. Kxh1 {[%emt 0:00:05]} b4 {[%emt 0:00:16]} 57. cxb4 {[%emt 0:00:05]} c3 {[%emt 0:00:18]} 58. Nxc3 {[%emt 0:00:04]} Kxc3 {[%emt 0:00:06]} 59. g8=Q {[%emt 0:00:06]} Kxb4 {[%emt 0:00:13]} 60. Qc8 {[%emt 0:00:48]} Kb3 {[%emt 0:00:22]} 61. Kg2 {[%emt 0:01:07]} Kb4 {[%emt 0:01:05]} 62. Kf3 {[%emt 0:00:12]} Kb5 {[%emt 0:00:06]} 63. Qc5+ {[%emt 0:00:09]} Ka4 {[%emt 0:00:08]} 64. Qb6 {[%emt 0:00:03]} Ka3 {[%emt 0:00:06]} 65. Ke3 {[%emt 0:00:06]} Ka4 {[%emt 0:00:04]} 66. Kd3 {[%emt 0:00:03]} Ka3 {[%emt 0:00:05]} 67. Kc3 {[%emt 0:00:04]} Ka4 {[%emt 0:00:05]} 68. Qb4# {[%emt 0:00:43]} 1-0

[Event "DVM U12W 2021"]
[Site "Willingen"]
[Date "2022.08.15"]
[Round "6"]
[White "Mo, Keyou"]
[Black "Fomenkova, Elina"]
[Result "1-0"]
[ECO "B00"]
[WhiteElo "1264"]
[BlackElo "1049"]
[Annotator "NA RC"]
[PlyCount "69"]
[EventDate "2022.08.12"]
[EventType "team-tourn"]
[EventRounds "7"]
[EventCountry "GER"]
[SourceTitle "playchess.com"]
[Source "ChessBase"]
[SourceQuality "1"]
[TimeControl "40/5400+30:1800+30"]

1. e4 {[%emt 0:00:05]} Nc6 {[%emt 0:00:00]} 2. Nf3 {[%emt 0:00:06]} d6 {[%emt 0:00:00]} 3. d4 {[%emt 0:00:42]} Bg4 {[%emt 0:00:05]} 4. h3 {[%emt 0:00:43]} Bh5 {[%emt 0:00:30]} 5. Be2 {[%emt 0:02:45]} Bxf3 {[%emt 0:00:07]} 6. Bxf3 {[%emt 0:00:16]} e5 {[%emt 0:00:24]} 7. d5 {[%emt 0:00:35]} Nd4 {[%emt 0:01:47]} 8. Be3 {[%emt 0:02:29]} Nxf3+ {[%emt 0:00:09]} 9. Qxf3 {[%emt 0:00:08]} Qf6 {[%emt 0:05:11]} 10. Qe2 {[%emt 0:03:37]} O-O-O {[%emt 0:02:05]} 11. Nc3 {[%emt 0:01:17]} a6 {[%emt 0:00:41]} 12. O-O-O {[%emt 0:00:12]} Ne7 {[%emt 0:01:28]} 13. Rhf1 {[%emt 0:01:15]} c6 {[%emt 0:02:34]} 14. f4 {[%emt 0:10:26]} exf4 {[%emt 0:00:11]} 15. Rxf4 {[%emt 0:01:04]} Qg6 {[%emt 0:04:14]} 16. dxc6 {[%emt 0:00:36]} Nxc6 {[%emt 0:00:49]} 17. Rdf1 {[%emt 0:04:34]} Rd7 {[%emt 0:00:36]} 18. Nd5 {[%emt 0:02:12]} Kb8 {[%emt 0:02:59]} 19. Bd2 {[%emt 0:03:47]} Be7 {[%emt 0:02:36]} 20. Rxf7 {[%emt 0:07:27]} Rf8 {[%emt 0:00:13]} 21. Rxf8+ {[%emt 0:01:04]} Bxf8 {[%emt 0:00:06]} 22. Rxf8+ {[%emt 0:00:36]} Ka7 {[%emt 0:00:49]} 23. Be3+ {[%emt 0:00:08]} b6 {[%emt 0:00:28]} 24. Bxb6+ {[%emt 0:00:26]} Kb7 {[%emt 0:00:36]} 25. Qe3 {[%emt 0:02:07]} Qxg2 {[%emt 0:01:20]} 26. Ba5 {[%emt 0:01:13]} Qh1+ {[%emt 0:00:18]} 27. Be1 {[%emt 0:01:00]} Nd4 {[%emt 0:02:09]} 28. Kd1 {[%emt 0:04:56]} Rc7 {[%emt 0:02:11]} 29. Nxc7 {[%emt 0:00:26]} Kxc7 {[%emt 0:00:04]} 30. Qxd4 {[%emt 0:00:43]} Qxh3 {[%emt 0:00:22]} 31. Ba5+ {[%emt 0:01:22]} Kd7 {[%emt 0:01:01]} 32. Rd8+ {[%emt 0:03:48]} Ke6 {[%emt 0:00:21]} 33. Qxd6+ {[%emt 0:00:42]} Kf7 {[%emt 0:00:31]} 34. Rd7+ {[%emt 0:01:25]} Kg8 35. Qb8# {[%emt 1:41:43]} 1-0

[Event "DVM U12W 2021"]
[Site "Willingen"]
[Date "2022.08.15"]
[Round "6"]
[White "Leicher, Anna"]
[Black "Glotz, Diana"]
[Result "1/2-1/2"]
[ECO "C45"]
[WhiteElo "1252"]
[BlackElo "1116"]
[Annotator "NA RC"]
[PlyCount "63"]
[EventDate "2022.08.12"]
[EventType "team-tourn"]
[EventRounds "7"]
[EventCountry "GER"]
[SourceTitle "playchess.com"]
[Source "ChessBase"]
[SourceQuality "1"]
[TimeControl "40/5400+30:1800+30"]

1. e4 {[%emt 0:00:06]} e5 {[%emt 0:00:00]} 2. Nf3 {[%emt 0:00:11]} Nc6 {[%emt 0:00:00]} 3. d4 {[%emt 0:00:07]} exd4 {[%emt 0:00:25]} 4. Nxd4 {[%emt 0:00:21]} Bc5 {[%emt 0:00:47]} 5. Nxc6 {[%emt 0:01:16]} Qf6 {[%emt 0:00:44]} 6. Qf3 {[%emt 0:02:09]} Qxf3 {[%emt 0:00:17]} 7. gxf3 {[%emt 0:00:15]} dxc6 {[%emt 0:02:48]} 8. Bf4 {[%emt 0:01:28]} Bb6 {[%emt 0:02:55]} 9. Nd2 {[%emt 0:03:37]} Be6 {[%emt 0:02:45]} 10. Bg3 {[%emt 0:02:45]} O-O-O {[%emt 0:00:35]} 11. O-O-O {[%emt 0:02:13]} Nf6 {[%emt 0:01:20]} 12. Bc4 {[%emt 0:04:19]} Bxc4 {[%emt 0:00:28]} 13. Nxc4 {[%emt 0:24:06]} Rhe8 {[%emt 0:04:15]} 14. Bh4 {[%emt 0:05:00]} h6 {[%emt 0:02:26]} 15. e5 {[%emt 0:00:12]} g5 {[%emt 0:01:23]} 16. Nxb6+ {[%emt 0:00:24]} cxb6 {[%emt 0:01:09]} 17. Bxg5 {[%emt 0:00:10]} hxg5 {[%emt 0:00:46]} 18. exf6 {[%emt 0:01:39]} Re6 {[%emt 0:02:13]} 19. Rxd8+ {[%emt 0:00:14]} Kxd8 {[%emt 0:01:23]} 20. Rg1 {[%emt 0:00:35]} Rxf6 {[%emt 0:03:28]} 21. Rg3 {[%emt 0:02:04]} Rf5 {[%emt 0:14:50]} 22. Kd2 {[%emt 0:01:33]} f6 {[%emt 0:01:16]} 23. Rh3 {[%emt 0:02:33]} a6 {[%emt 0:03:32]} 24. Ke2 {[%emt 0:02:41]} Rb5 {[%emt 0:03:59]} 25. b3 {[%emt 0:01:10]} Ra5 {[%emt 0:00:39]} 26. a4 {[%emt 0:01:56]} b5 {[%emt 0:06:00]} 27. Rh8+ {[%emt 0:00:55]} Kc7 {[%emt 0:01:16]} 28. Rf8 {[%emt 0:00:26]} bxa4 {[%emt 0:00:18]} 29. bxa4 {[%emt 0:00:06]} Rxa4 {[%emt 0:00:17]} 30. Rxf6 {[%emt 0:01:39]} Rh4 {[%emt 0:03:08]} 31. Rf5 {[%emt 0:00:15]} Rxh2 {[%emt 0:00:44]} 32. Rxg5 1/2-1/2

[Event "DVM U12W 2021"]
[Site "Willingen"]
[Date "2022.08.15"]
[Round "6"]
[White "Eger, Nora"]
[Black "Mauhs, Helena"]
[Result "1-0"]
[ECO "A07"]
[WhiteElo "1248"]
[BlackElo "857"]
[Annotator "NA RC"]
[PlyCount "89"]
[EventDate "2022.08.12"]
[EventType "team-tourn"]
[EventRounds "7"]
[EventCountry "GER"]
[SourceTitle "playchess.com"]
[Source "ChessBase"]
[SourceQuality "1"]
[TimeControl "40/5400+30:1800+30"]

1. Nf3 {[%emt 0:00:03]} Nf6 {[%emt 0:00:09]} 2. g3 {[%emt 0:00:05]} d5 {[%emt 0:00:09]} 3. Bg2 {[%emt 0:00:19]} Bf5 {[%emt 0:00:08]} 4. d3 {[%emt 0:00:25]} Nc6 {[%emt 0:00:26]} 5. O-O {[%emt 0:00:44]} Qd7 {[%emt 0:00:48]} 6. c3 {[%emt 0:01:23]} O-O-O {[%emt 0:01:19]} 7. b4 {[%emt 0:01:00]} a6 {[%emt 0:01:05]} 8. a4 {[%emt 0:01:47]} e6 {[%emt 0:02:30]} 9. b5 {[%emt 0:02:44]} axb5 {[%emt 0:01:39]} 10. axb5 {[%emt 0:00:53]} Nb8 {[%emt 0:01:57]} 11. Qb3 {[%emt 0:09:22]} Bd6 {[%emt 0:05:56]} 12. Be3 {[%emt 0:06:10]} b6 {[%emt 0:07:04]} 13. Nbd2 {[%emt 0:06:12]} h5 {[%emt 0:03:09]} 14. Ra8 {[%emt 0:02:29]} Rhg8 {[%emt 0:04:12]} 15. Nd4 {[%emt 0:03:06]} Kb7 {[%emt 0:04:52]} 16. Qa4 {[%emt 0:07:52]} c5 {[%emt 0:09:10]} 17. Ra7+ {[%emt 0:01:33]} Kc8 {[%emt 0:00:25]} 18. Rxd7 {[%emt 0:00:32]} Rxd7 {[%emt 0:00:32]} 19. Nxf5 {[%emt 0:01:24]} exf5 {[%emt 0:00:31]} 20. Bf4 {[%emt 0:03:44]} g5 {[%emt 0:03:48]} 21. Bxd6 {[%emt 0:01:33]} Rxd6 {[%emt 0:00:36]} 22. Nf3 {[%emt 0:05:53]} Re6 {[%emt 0:04:40]} 23. e3 {[%emt 0:04:30]} Nbd7 {[%emt 0:05:40]} 24. d4 {[%emt 0:02:53]} c4 {[%emt 0:04:30]} 25. Qc2 {[%emt 0:03:23]} Re4 {[%emt 0:03:45]} 26. Ne5 {[%emt 0:04:15]} Nxe5 {[%emt 0:05:53]} 27. Bxe4 {[%emt 0:00:58]} dxe4 {[%emt 0:01:07]} 28. dxe5 {[%emt 0:00:55]} Ng4 {[%emt 0:03:08]} 29. Qe2 {[%emt 0:03:23]} Rd8 {[%emt 0:00:59]} 30. Qxc4+ {[%emt 0:01:25]} Kb8 {[%emt 0:00:21]} 31. Qxf7 {[%emt 0:03:26]} Nxe5 {[%emt 0:01:23]} 32. Qxf5 {[%emt 0:01:51]} Re8 {[%emt 0:00:33]} 33. Kg2 {[%emt 0:03:33]} h4 {[%emt 0:05:09]} 34. h3 {[%emt 0:08:39]} g4 {[%emt 0:02:40]} 35. Rd1 {[%emt 0:02:44]} gxh3+ {[%emt 0:01:55]} 36. Qxh3 {[%emt 0:00:59]} Nf3 {[%emt 0:02:06]} 37. Rd6 {[%emt 0:01:57]} Ne1+ {[%emt 0:01:31]} 38. Kf1 {[%emt 0:01:13]} hxg3 {[%emt 0:02:25]} 39. Rxb6+ {[%emt 0:02:03]} Ka8 {[%emt 0:01:54]} 40. Ra6+ {[%emt 0:00:35]} Kb8 {[%emt 0:00:38]} 41. Qxg3+ {[%emt 0:31:21]} Kb7 {[%emt 0:30:44]} 42. Kxe1 {[%emt 0:01:09]} Rc8 {[%emt 0:00:50]} 43. Rc6 {[%emt 0:00:00]} Rb8 {[%emt 0:00:00]} 44. Qg7+ {[%emt 0:00:00]} Ka8 {[%emt 0:00:00]} 45. Ra6# {[%emt 0:00:13]} 1-0